fUST/lending_fUST_20250613
["ID","MTS","AMOUNT","RATE_DAILY","PERIOD"]
[365681229,1749827434197,-460.0,0.00021095,4]
[365681230,1749827434208,-460.0,0.00021095,4]
[365681231,1749827434219,-460.0,0.00021095,4]
[365681232,1749827434231,-1236.5,0.00021095,4]
[365681233,1749827434242,-460.0,0.00021095,4]
[365681235,1749827434257,-434.69094118,0.00021095,4]
[365681236,1749827434269,-1917.67,0.00021095,4]
[365681237,1749827434280,-460.0,0.00021095,4]
[365681238,1749827434292,-460.0,0.00021095,4]
[365681239,1749827434303,-283.55639312,0.00021095,4]
[365681240,1749827434313,-199.335582,0.00021095,4]
[365681241,1749827434324,-2309.27,0.00021095,4]
[365681242,1749827434338,-460.0,0.00021095,4]
[365681243,1749827434349,-460.0,0.00021095,4]
[365681244,1749827434359,-460.0,0.00021095,4]
[365681245,1749827434370,-460.0,0.00021095,4]
[365681246,1749827434382,-460.0,0.00021095,4]
[365681247,1749827434392,-460.0,0.00021095,4]
[365681248,1749827434402,-1184.92,0.00021095,4]
[365681249,1749827434412,-460.0,0.00021095,4]
[365681250,1749827434422,-460.0,0.00021095,4]
[365681251,1749827434432,-440.0,0.00021095,4]
[365681252,1749827434442,-440.0,0.00021095,4]
[365681253,1749827434453,-743.96,0.00021095,4]
[365681254,1749827434462,-460.0,0.00021095,4]
[365681255,1749827434473,-460.0,0.00021095,4]
[365681256,1749827434482,-475.94,0.00021095,4]
[365681257,1749827434492,-460.0,0.00021095,4]
[365681259,1749827434505,-460.0,0.00021095,4]
[365681260,1749827434515,-460.0,0.00021095,4]
[365681261,1749827434526,-460.0,0.00021095,4]
[365681262,1749827434535,-460.0,0.00021095,4]
[365681263,1749827434545,-460.0,0.00021095,4]
[365681264,1749827434555,-1430.43,0.00021095,4]
[365681265,1749827434565,-71.57388645,0.00021095,4]
[365681302,1749827438913,-388.42611355,0.00021095,4]
[365681303,1749827438924,-460.0,0.00021095,4]
[365681304,1749827438934,-460.0,0.00021095,4]
[365681305,1749827438944,-440.0,0.00021095,4]
[365681306,1749827438953,-460.0,0.00021095,4]
[365681307,1749827438963,-502.86017994,0.00021095,4]
[365681308,1749827438973,-1703.3,0.00021095,4]
[365681309,1749827438982,-460.0,0.00021095,4]
[365681310,1749827438992,-460.0,0.00021095,4]
[365681311,1749827439007,-460.0,0.00021095,4]
[365681312,1749827439016,-1471.99352683,0.00021269,2]
[365681313,1749827439026,-708.58468893,0.000213,2]
[365681314,1749827439035,-1189.39,0.00021359,3]
[365681315,1749827439045,-594.7,0.00021359,3]
[365681317,1749827439055,-297.35,0.00021359,3]
[365681318,1749827439064,-892.06,0.00021359,3]
[365681319,1749827439074,-169.27,0.00021359,10]
[365681320,1749827439084,-500.0,0.00021368,2]
[365681321,1749827439094,-168.7,0.00021368,2]
[365681322,1749827439104,-460.0,0.00021369,4]
[365681323,1749827439114,-460.0,0.00021369,4]
[365681324,1749827439123,-218.79,0.00021369,4]
[365681325,1749827439134,-460.0,0.00021369,4]
[365681326,1749827439144,-460.0,0.00021369,4]
[365681327,1749827439153,-460.0,0.00021369,4]
[365681328,1749827439163,-460.0,0.00021369,4]
[365681329,1749827439173,-460.0,0.00021369,4]
[365681330,1749827439183,-280.22298708,0.00021369,4]
[365681331,1749827439192,-460.0,0.00021369,4]
[365681332,1749827439202,-460.0,0.00021369,4]
[365681333,1749827439211,-460.0,0.00021369,4]
[365681334,1749827439221,-460.0,0.00021369,4]
[365681335,1749827439230,-460.0,0.00021369,4]
[365681336,1749827439240,-460.0,0.00021369,4]
[365681337,1749827439253,-285.13,0.00021369,4]
[365681338,1749827439263,-460.0,0.00021369,4]
[365681339,1749827439272,-460.0,0.00021369,4]
[365681340,1749827439281,-460.0,0.00021369,4]
[365681341,1749827439291,-460.0,0.00021369,4]
[365681342,1749827439301,-460.0,0.00021369,4]
[365681343,1749827439310,-497.13,0.00021369,4]
[365681344,1749827439319,-460.0,0.00021369,4]
[365681346,1749827439333,-560.74205213,0.00021369,4]
[365681347,1749827439343,-649.71,0.00021369,4]
[365681348,1749827439353,-460.0,0.00021369,4]
[365681349,1749827439363,-718.19,0.00021369,4]
[365681350,1749827439373,-190.89389746,0.00021369,4]
[365681351,1749827439382,-460.0,0.00021369,4]
[365681352,1749827439392,-460.0,0.00021369,4]
[365681353,1749827439401,-1945.04,0.00021369,4]
[365681354,1749827439411,-460.0,0.00021369,4]
[365681355,1749827439422,-500.0,0.00021369,4]
[365681356,1749827439432,-460.0,0.00021369,4]
[365681357,1749827439442,-320.0,0.00021369,4]
[365681358,1749827439452,-460.0,0.00021369,4]
[365681359,1749827439461,-460.0,0.00021369,4]
[365681360,1749827439471,-489.15,0.00021369,4]
[365681361,1749827439480,-460.0,0.00021369,4]
[365681362,1749827439490,-280.0,0.00021369,4]
[365681363,1749827439502,-460.0,0.00021369,4]
[365681364,1749827439512,-460.0,0.00021369,4]
[365681365,1749827439521,-460.0,0.00021369,4]
[365681366,1749827439531,-738.23,0.00021369,4]
[365681367,1749827439541,-460.0,0.00021369,4]
[365681368,1749827439550,-460.0,0.00021369,4]
[365681369,1749827439559,-460.0,0.00021369,4]
[365681370,1749827439569,-460.0,0.00021369,4]
[365681371,1749827439579,-460.0,0.00021369,4]
[365681373,1749827439588,-460.0,0.00021369,4]
[365681374,1749827439598,-460.0,0.00021369,4]
[365681375,1749827439607,-460.0,0.00021369,4]
[365681376,1749827439617,-460.0,0.00021369,4]
[365681377,1749827439627,-460.0,0.00021369,4]
[365681378,1749827439636,-460.0,0.00021369,4]
[365681379,1749827439647,-460.0,0.00021369,4]
[365681380,1749827439656,-460.0,0.00021369,2]
[365681381,1749827439666,-460.0,0.00021369,4]
[365681382,1749827439676,-460.0,0.00021369,4]
[365681383,1749827439686,-460.0,0.00021369,4]
[365681384,1749827439696,-1621.77,0.00021369,4]
[365681385,1749827439706,-460.0,0.00021369,4]
[365681386,1749827439716,-460.0,0.00021369,4]
[365681387,1749827439725,-460.0,0.00021369,4]
[365681388,1749827439736,-340.0,0.00021369,4]
[365681389,1749827439746,-460.0,0.00021369,4]
[365681390,1749827439760,-226.172,0.00021369,4]
[365681391,1749827439770,-460.0,0.00021369,4]
[365681392,1749827439779,-1236.5,0.00021369,4]
[365681393,1749827439788,-460.0,0.00021369,4]
[365681394,1749827439798,-1917.67,0.00021369,4]
[365681395,1749827439808,-460.0,0.00021369,4]
[365681396,1749827439817,-342.60115297,0.00021369,4]
[365681397,1749827439827,-2309.27,0.00021369,4]
[365681398,1749827439836,-460.0,0.00021369,4]
[365681401,1749827439845,-460.0,0.00021369,4]
[365681403,1749827439855,-460.0,0.00021369,4]
[365681404,1749827439864,-460.0,0.00021369,4]
[365681405,1749827439874,-460.0,0.00021369,4]
[365681407,1749827439884,-460.0,0.00021369,4]
[365681408,1749827439894,-1184.92,0.00021369,4]
[365681409,1749827439905,-439.41965538,0.00021369,4]
[365681410,1749827439915,-743.96,0.00021369,4]
[365681411,1749827439925,-411.16221496,0.00021369,4]
[365681412,1749827439935,-460.0,0.00021369,4]
[365681413,1749827439945,-475.94,0.00021369,4]
[365681414,1749827439955,-460.0,0.00021369,4]
[365681415,1749827439965,-440.0,0.00021369,4]
[365681416,1749827439974,-460.0,0.00021369,4]
[365681417,1749827439985,-460.0,0.00021369,4]
[365681418,1749827439994,-460.0,0.00021369,4]
[365681419,1749827440005,-1430.43,0.00021369,4]
[365681420,1749827440015,-460.0,0.00021369,4]
[365681421,1749827440026,-460.0,0.00021369,4]
[365681422,1749827440036,-1703.3,0.00021369,4]
[365681423,1749827440045,-460.0,0.00021369,4]
[365681424,1749827440055,-537.978401,0.000214,2]
[365681425,1749827440066,-500.0,0.000214,2]
[365681426,1749827440076,-500.0,0.000214,2]
[365681427,1749827440086,-287.65116742,0.00021476,2]
[365681428,1749827440096,-500.0,0.00021476,2]
[365681429,1749827440106,-500.0,0.00021476,2]
[365681430,1749827440116,-500.0,0.00021538,2]
[365681431,1749827440125,-541.34304117,0.00021538,2]
[365681432,1749827440135,-500.0,0.00021538,2]
[365681433,1749827440145,-502.21576639,0.00021538,2]
[365681434,1749827440162,-367.89843496,0.00021538,2]
[365681435,1749827440178,-542.29624355,0.00021538,2]
[365681436,1749827440189,-500.0,0.00021545,2]
[365681437,1749827440199,-505.47568824,0.00021545,2]
[365681438,1749827440209,-500.0,0.00021567,2]
[365681439,1749827440320,-500.0,0.00021567,2]
[365681440,1749827440332,-500.0,0.00021567,2]
[365681441,1749827440344,-539.29664791,0.00021567,2]
[365681442,1749827440354,-500.0,0.00021567,2]
[365681443,1749827440364,-614.97389559,0.00021567,2]
[365681444,1749827440374,-500.0,0.00021604,2]
[365681445,1749827440386,-503.23811144,0.00021612,2]
[365681446,1749827440396,-500.0,0.00021641,2]
[365681447,1749827440406,-500.0,0.00021641,2]
[365681448,1749827440416,-500.0,0.00021641,2]
[365681449,1749827440426,-500.0,0.00021641,2]
[365681450,1749827440437,-500.0,0.00021641,2]
[365681451,1749827440446,-500.0,0.00021641,2]
[365681452,1749827440456,-500.0,0.00021641,2]
[365681454,1749827440466,-500.0,0.00021641,2]
[365681456,1749827440475,-522.41698731,0.00021641,2]
[365681458,1749827440484,-500.0,0.00021641,2]
[365681460,1749827440494,-275.47928321,0.00021641,2]
[365681462,1749827440506,-300.0,0.00021643,4]
[365681464,1749827440516,-460.0,0.00021643,4]
[365681466,1749827440526,-320.0,0.00021643,4]
[365681468,1749827440535,-320.0,0.00021643,4]
[365681470,1749827440545,-451.71471395,0.00021643,4]
[365681472,1749827440554,-440.0,0.00021643,4]
[365681474,1749827440565,-460.0,0.00021643,4]
[365681476,1749827440575,-460.0,0.00021643,4]
[365681478,1749827440585,-460.0,0.00021643,4]
[365681480,1749827440594,-460.0,0.00021643,4]
[365681482,1749827440604,-460.0,0.00021643,4]
[365681484,1749827440614,-497.13,0.00021643,4]
[365681486,1749827440624,-649.71,0.00021643,4]
[365681488,1749827440635,-460.0,0.00021643,4]
[365681490,1749827440644,-718.19,0.00021643,4]
[365681492,1749827440654,-460.0,0.00021643,4]
[365681494,1749827440663,-460.0,0.00021643,4]
[365681496,1749827440673,-1945.04,0.00021643,4]
[365681498,1749827440683,-460.0,0.00021643,4]
[365681500,1749827440693,-500.0,0.00021643,4]
[365681502,1749827440703,-460.0,0.00021643,4]
[365681504,1749827440713,-460.0,0.00021643,4]
[365681506,1749827440722,-489.15,0.00021643,4]
[365681508,1749827440732,-440.0,0.00021643,4]
[365681510,1749827440742,-460.0,0.00021643,4]
[365681512,1749827440753,-460.0,0.00021643,4]
[365681514,1749827440762,-460.0,0.00021643,4]
[365681516,1749827440772,-738.23,0.00021643,4]
[365681518,1749827440781,-460.0,0.00021643,4]
[365681520,1749827440791,-460.0,0.00021643,4]
[365681522,1749827440801,-460.0,0.00021643,4]
[365681523,1749827440810,-460.0,0.00021643,4]
[365681525,1749827440821,-460.0,0.00021643,4]
[365681526,1749827440831,-320.0,0.00021643,4]
[365681528,1749827440841,-460.0,0.00021643,4]
[365681529,1749827440852,-460.0,0.00021643,4]
[365681530,1749827440861,-460.0,0.00021643,4]
[365681531,1749827440871,-460.0,0.00021643,4]
[365681532,1749827440881,-460.0,0.00021643,2]
[365681534,1749827440891,-460.0,0.00021643,4]
[365681535,1749827440900,-270.0,0.00021643,4]
[365681536,1749827440911,-460.0,0.00021643,4]
[365681537,1749827440921,-1621.77,0.00021643,4]
[365681538,1749827440931,-460.0,0.00021643,4]
[365681539,1749827440940,-460.0,0.00021643,4]
[365681541,1749827440950,-190.0,0.00021643,4]
[365681542,1749827440960,-460.0,0.00021643,4]
[365681543,1749827440970,-460.0,0.00021643,4]
[365681545,1749827440980,-460.0,0.00021643,4]
[365681547,1749827440990,-1236.5,0.00021643,4]
[365681549,1749827441002,-460.0,0.00021643,4]
[365681550,1749827441014,-1917.67,0.00021643,4]
[365681551,1749827441024,-2309.27,0.00021643,4]
[365681552,1749827441033,-460.0,0.00021643,4]
[365681553,1749827441043,-460.0,0.00021643,4]
[365681555,1749827441053,-460.0,0.00021643,4]
[365681556,1749827441064,-460.0,0.00021643,4]
[365681558,1749827441074,-1184.92,0.00021643,4]
[365681560,1749827441084,-743.96,0.00021643,4]
[365681562,1749827441094,-460.0,0.00021643,4]
[365681563,1749827441104,-475.94,0.00021643,4]
[365681564,1749827441114,-440.0,0.00021643,4]
[365681565,1749827441124,-440.0,0.00021643,4]
[365681566,1749827441134,-460.0,0.00021643,4]
[365681568,1749827441143,-460.0,0.00021643,4]
[365681569,1749827441153,-1430.43,0.00021643,4]
[365681570,1749827441163,-460.0,0.00021643,4]
[365681571,1749827441172,-460.0,0.00021643,4]
[365681572,1749827441182,-1703.3,0.00021643,4]
[365681573,1749827441192,-460.0,0.00021643,4]
[365681575,1749827441203,-500.0,0.00021647,2]
[365681576,1749827441213,-1471.99352681,0.00021749,2]
[365681577,1749827441223,-1287.0,0.00021802,2]
[365681578,1749827441233,-16000.0,0.00021877,2]
[365681579,1749827441243,-15102.16783323,0.00021877,2]
[365681581,1749827441256,-500.0,0.00021882,2]
[365681582,1749827441267,-206.33523398,0.00021899,2]
[365681583,1749827441277,-23234.24844159,0.000219,2]
[365681584,1749827441291,-500.0,0.00021916,3]
[365681585,1749827441302,-300.0,0.00021917,4]
[365681586,1749827441312,-300.0,0.00021917,4]
[365681587,1749827441325,-300.0,0.00021917,4]
[365681588,1749827441335,-300.0,0.00021917,4]
[365681590,1749827441346,-300.0,0.00021917,4]
[365681591,1749827441355,-500.0,0.00021917,2]
[365681592,1749827441366,-303.03831783,0.00021917,4]
[365681593,1749827441376,-497.13,0.00021917,4]
[365681594,1749827441386,-649.71,0.00021917,4]
[365681595,1749827441396,-460.0,0.00021917,4]
[365681597,1749827441406,-718.19,0.00021917,4]
[365681598,1749827441417,-460.0,0.00021917,4]
[365681599,1749827441426,-1945.04,0.00021917,4]
[365681600,1749827441436,-460.0,0.00021917,4]
[365681601,1749827441447,-460.0,0.00021917,4]
[365681602,1749827441458,-460.0,0.00021917,4]
[365681603,1749827441468,-489.15,0.00021917,4]
[365681604,1749827441477,-460.0,0.00021917,4]
[365681606,1749827441487,-420.0,0.00021917,4]
[365681607,1749827441496,-738.23,0.00021917,4]
[365681608,1749827441510,-460.0,0.00021917,4]
[365681609,1749827441519,-240.53,0.00021917,4]
[365681610,1749827441529,-292.31564883,0.00021917,4]
[365681611,1749827441538,-440.0,0.00021917,4]
[365681612,1749827441548,-460.0,0.00021917,4]
[365681613,1749827441558,-460.0,0.00021917,4]
[365681614,1749827441568,-460.0,0.00021917,4]
[365681615,1749827441578,-460.0,0.00021917,4]
[365681617,1749827441588,-460.0,0.00021917,2]
[365681618,1749827441600,-1621.77,0.00021917,4]
[365681619,1749827441610,-563.07554668,0.00021917,4]
[365681620,1749827441620,-460.0,0.00021917,4]
[365681621,1749827441631,-460.0,0.00021917,4]
[365681622,1749827441641,-460.0,0.00021917,4]
[365681623,1749827441651,-1236.5,0.00021917,4]
[365681624,1749827441661,-460.0,0.00021917,4]
[365681625,1749827441671,-1917.67,0.00021917,4]
[365681626,1749827441681,-460.0,0.00021917,4]
[365681627,1749827441691,-2309.27,0.00021917,4]
[365681628,1749827441701,-460.0,0.00021917,4]
[365681629,1749827441712,-440.0,0.00021917,4]
[365681630,1749827441722,-460.0,0.00021917,4]
[365681631,1749827441734,-1184.92,0.00021917,4]
[365681632,1749827441744,-743.96,0.00021917,4]
[365681633,1749827441757,-460.0,0.00021917,4]
[365681634,1749827441767,-475.94,0.00021917,4]
[365681635,1749827441777,-468.98,0.00021917,4]
[365681636,1749827441787,-1430.43,0.00021917,4]
[365681637,1749827441797,-460.0,0.00021917,4]
[365681638,1749827441807,-460.0,0.00021917,4]
[365681639,1749827441818,-1703.3,0.00021917,4]
[365681640,1749827441828,-440.0,0.00021917,4]
[365681641,1749827441837,-1000.0,0.00021948,2]
[365681642,1749827441847,-509.04374065,0.00021948,2]
[365681643,1749827441859,-4418.0,0.00021968,2]
[365681644,1749827441868,-500.0,0.00021973,2]
[365681645,1749827441878,-500.0,0.00021973,2]
[365681646,1749827441894,-22799.83994004,0.00022,2]
[365681647,1749827441904,-5000.0,0.00022,6]
[365681648,1749827441915,-503.87350031,0.00022018,2]
[365681649,1749827441925,-500.0,0.00022018,2]
[365681650,1749827441934,-500.0,0.00022024,2]
[365681651,1749827441944,-502.66042553,0.00022024,2]
[365681652,1749827441954,-1000.0,0.00022093,2]
[365681653,1749827441965,-305.0,0.00022104,2]
[365681654,1749827441976,-1000.0,0.00022115,2]
[365681655,1749827441987,-926.13700391,0.00022115,2]
[365681656,1749827441997,-500.0,0.00022115,2]
[365681657,1749827442012,-1000.0,0.00022152,2]
[365681658,1749827442023,-12531.02669373,0.00022184,2]
[365681659,1749827442033,-160.0,0.00022184,2]
[365681660,1749827442044,-160.0,0.00022184,2]
[365681662,1749827442054,-229.78555783,0.00022184,2]
[365681663,1749827442064,-160.0,0.00022184,2]
[365681664,1749827442074,-160.0,0.00022184,2]
[365681665,1749827442084,-844.94977992,0.00022184,2]
[365681666,1749827442096,-835.28007164,0.00022184,2]
[365681667,1749827442107,-424.32678023,0.00022184,2]
[365681668,1749827442117,-160.0,0.00022184,2]
[365681669,1749827442127,-160.0,0.00022188,2]
[365681670,1749827442137,-160.0,0.00022188,2]
[365681671,1749827442147,-497.13,0.00022191,4]
[365681672,1749827442158,-649.71,0.00022191,4]
[365681673,1749827442169,-460.0,0.00022191,4]
[365681674,1749827442179,-718.19,0.00022191,4]
[365681675,1749827442189,-369.98,0.00022191,4]
[365681676,1749827442199,-1945.04,0.00022191,4]
[365681677,1749827442210,-460.0,0.00022191,4]
[365681679,1749827442220,-414.64,0.00022191,4]
[365681680,1749827442230,-170.8,0.00022191,4]
[365681681,1749827442240,-489.15,0.00022191,4]
[365681682,1749827442252,-298.62,0.00022191,4]
[365681683,1749827442262,-738.23,0.00022191,4]
[365681685,1749827442271,-280.0,0.00022191,4]
[365681686,1749827442282,-460.0,0.00022191,4]
[365681687,1749827442292,-460.0,0.00022191,4]
[365681688,1749827442301,-460.0,0.00022191,4]
[365681689,1749827442311,-460.0,0.00022191,2]
[365681690,1749827442324,-1621.77,0.00022191,4]
[365681691,1749827442336,-460.0,0.00022191,4]
[365681692,1749827442349,-440.0,0.00022191,4]
[365681693,1749827442359,-440.0,0.00022191,4]
[365681694,1749827442370,-1236.5,0.00022191,4]
[365681695,1749827442381,-460.0,0.00022191,4]
[365681696,1749827442390,-1917.67,0.00022191,4]
[365681697,1749827442400,-440.0,0.00022191,4]
[365681698,1749827442410,-2309.27,0.00022191,4]
[365681699,1749827442420,-460.0,0.00022191,4]
[365681700,1749827442430,-460.0,0.00022191,4]
[365681701,1749827442440,-1184.92,0.00022191,4]
[365681703,1749827442450,-743.96,0.00022191,4]
[365681704,1749827442460,-244.90451865,0.00022191,4]
[365681705,1749827442470,-475.94,0.00022191,4]
[365681706,1749827442480,-1430.43,0.00022191,4]
[365681707,1749827442490,-460.0,0.00022191,4]
[365681708,1749827442501,-460.0,0.00022191,4]
[365681709,1749827442510,-1703.3,0.00022191,4]
[365681710,1749827442521,-979.90183394,0.00022195,2]
[365681711,1749827442530,-1471.99352681,0.00022228,2]
[365681712,1749827442540,-379.0,0.00022356,2]
[365681713,1749827442551,-151.0,0.00022357,2]
[365681714,1749827442562,-1688.0,0.00022357,2]
[365681715,1749827442573,-151.0,0.00022357,2]
[365681716,1749827442583,-151.0,0.00022357,2]
[365681717,1749827442593,-151.0,0.00022357,2]
[365681718,1749827442603,-207.4,0.00022357,2]
[365681719,1749827442620,-151.0,0.00022357,2]
[365681720,1749827442632,-151.0,0.00022357,2]
[365681721,1749827442642,-270.98328894,0.00022357,2]
[365681722,1749827442652,-500.0,0.00022357,2]
[365681723,1749827442662,-500.0,0.00022357,2]
[365681724,1749827442672,-5000.0,0.00022357,2]
[365681725,1749827442681,-500.0,0.00022357,2]
[365681726,1749827442691,-500.0,0.00022357,2]
[365681727,1749827442702,-500.0,0.00022357,2]
[365681737,1749827442797,-500.0,0.00022357,2]
[365681741,1749827442817,-500.0,0.00022357,2]
[365681743,1749827442827,-500.0,0.00022357,2]
[365681745,1749827442838,-500.0,0.00022357,2]
[365681747,1749827442848,-3204.87589479,0.00022357,2]
[365681749,1749827442858,-500.0,0.00022357,2]
[365681751,1749827442868,-500.0,0.00022357,2]
[365681753,1749827442878,-500.0,0.00022357,2]
[365681755,1749827442888,-500.0,0.00022357,2]
[365681757,1749827442898,-500.0,0.00022357,2]
[365681760,1749827442908,-500.0,0.00022357,2]
[365681762,1749827442917,-500.0,0.00022357,2]
[365681764,1749827442927,-500.0,0.00022357,2]
[365681766,1749827442938,-500.0,0.00022357,2]
[365681768,1749827442948,-500.0,0.00022357,2]
[365681770,1749827442958,-500.0,0.00022357,2]
[365681772,1749827442968,-500.0,0.00022357,2]
[365681775,1749827442978,-500.0,0.00022357,2]
[365681777,1749827442988,-500.0,0.00022357,2]
[365681778,1749827442998,-500.0,0.00022357,2]
[365681779,1749827443009,-500.0,0.00022357,2]
[365681780,1749827443019,-500.0,0.00022357,2]
[365681781,1749827443028,-500.0,0.00022357,2]
[365681782,1749827443038,-500.0,0.00022357,2]
[365681783,1749827443048,-500.0,0.00022357,2]
[365681784,1749827443058,-500.0,0.00022357,2]
[365681785,1749827443069,-1750.456,0.00022412,2]
[365681786,1749827443079,-500.0,0.00022464,4]
[365681787,1749827443088,-497.13,0.00022465,4]
[365681788,1749827443098,-649.71,0.00022465,4]
[365681789,1749827443108,-460.0,0.00022465,4]
[365681791,1749827443118,-718.19,0.00022465,4]
[365681792,1749827443127,-1945.04,0.00022465,4]
[365681793,1749827443137,-460.0,0.00022465,4]
[365681794,1749827443147,-489.15,0.00022465,4]
[365681795,1749827443157,-738.23,0.00022465,4]
[365681797,1749827443168,-460.0,0.00022465,4]
[365681798,1749827443178,-460.0,0.00022465,4]
[365681799,1749827443187,-460.0,0.00022465,4]
[365681800,1749827443197,-460.0,0.00022465,2]
[365681801,1749827443207,-1621.77,0.00022465,4]
[365681802,1749827443217,-450.58569877,0.00022465,4]
[365681803,1749827443227,-1236.5,0.00022465,4]
[365681804,1749827443236,-460.0,0.00022465,4]
[365681805,1749827443246,-1917.67,0.00022465,4]
[365681806,1749827443257,-2309.27,0.00022465,4]
[365681807,1749827443267,-460.0,0.00022465,4]
[365681808,1749827443276,-463.1,0.00022465,4]
[365681809,1749827443286,-1184.92,0.00022465,4]
[365681810,1749827443296,-743.96,0.00022465,4]
[365681811,1749827443307,-475.94,0.00022465,4]
[365681812,1749827443316,-1430.43,0.00022465,4]
[365681813,1749827443329,-460.0,0.00022465,4]
[365681814,1749827443339,-460.0,0.00022465,4]
[365681815,1749827443349,-1703.3,0.00022465,4]
[365681816,1749827443360,-500.0,0.00022466,2]
[365681817,1749827443371,-500.0,0.00022466,2]
[365681818,1749827443381,-500.0,0.00022466,2]
[365681819,1749827443391,-327.91571206,0.00022466,2]
[365681821,1749827443401,-1815.222872,0.00022467,2]
[365681822,1749827443412,-1185.05267276,0.00022496,2]
[365681823,1749827443422,-500.0,0.00022521,2]
[365681824,1749827443432,-1882.38611826,0.00022522,2]
[365681825,1749827443442,-1021.56263175,0.00022566,2]
[365681826,1749827443452,-472.0,0.00022576,2]
[365681827,1749827443462,-406.39511791,0.00022577,2]
[365681828,1749827443472,-649.03949317,0.00022663,2]
[365681830,1749827443482,-1500.0,0.000227,2]
[365681831,1749827443491,-3000.0,0.000227,2]
[365681832,1749827443502,-1471.99352681,0.00022708,2]
[365681833,1749827443512,-3000.0,0.0002271,2]
[365681834,1749827443522,-310.26841365,0.0002271,2]
[365681835,1749827443533,-3000.0,0.0002272,2]
[365681836,1749827443543,-2378.78,0.00022729,3]
[365681837,1749827443552,-1189.4,0.00022729,3]
[365681838,1749827443562,-594.7,0.00022729,3]
[365681839,1749827443572,-3000.0,0.0002273,2]
[365681840,1749827443581,-168.7,0.00022738,2]
[365681841,1749827443591,-497.13,0.00022739,4]
[365681842,1749827443601,-477.78,0.00022739,4]
[365681843,1749827443611,-649.71,0.00022739,4]
[365681844,1749827443620,-718.19,0.00022739,4]
[365681845,1749827443630,-1945.04,0.00022739,4]
[365681846,1749827443640,-460.0,0.00022739,4]
[365681847,1749827443650,-489.15,0.00022739,4]
[365681848,1749827443660,-738.23,0.00022739,4]
[365681849,1749827443670,-460.0,0.00022739,4]
[365681850,1749827443680,-460.0,0.00022739,4]
[365681852,1749827443689,-460.0,0.00022739,4]
[365681853,1749827443699,-460.0,0.00022739,2]
[365681854,1749827443710,-1621.77,0.00022739,4]
[365681855,1749827443722,-1236.5,0.00022739,4]
[365681856,1749827443732,-460.0,0.00022739,4]
[365681857,1749827443742,-1917.67,0.00022739,4]
[365681858,1749827443755,-2309.27,0.00022739,4]
[365681860,1749827443764,-460.0,0.00022739,4]
[365681861,1749827443774,-1184.92,0.00022739,4]
[365681862,1749827443783,-743.96,0.00022739,4]
[365681863,1749827443792,-475.94,0.00022739,4]
[365681864,1749827443802,-1430.43,0.00022739,4]
[365681865,1749827443811,-460.0,0.00022739,4]
[365681866,1749827443820,-460.0,0.00022739,4]
[365681867,1749827443829,-1703.3,0.00022739,4]